[Event "*** SCC Grand Prix: Titled Tuesday Blitz"]
[Site "Chess.com"]
[Date "2020.07.21"]
[Round "4"]
[White "CaspiIsrael"]
[Black "Beca95"]
[Result "0-1"]
[WhiteElo "2630"]
[BlackElo "2834"]
[TimeControl "180+1"]
[EndTime "10:35:57 PDT"]
[Termination "Beca95 won by resignation"]

1. e4 {[%clk 0:02:59.5]} 1... d6 {[%clk 0:02:58.5]} 2. d4 {[%clk 0:02:58.3]}
2... Nf6 {[%clk 0:02:58.7]} 3. Nc3 {[%clk 0:02:58.1]} 3... Nbd7 {[%clk 0:02:59]}
4. Nf3 {[%clk 0:02:57.6]} 4... e5 {[%clk 0:02:58.3]} 5. Bc4 {[%clk 0:02:57.4]}
5... Be7 {[%clk 0:02:57.2]} 6. a4 {[%clk 0:02:57.9]} 6... h6 {[%clk 0:02:55.9]}
7. Qe2 {[%clk 0:02:48.7]} 7... c6 {[%clk 0:02:55.7]} 8. Be3 {[%clk 0:02:48.5]}
8... Qc7 {[%clk 0:02:54.7]} 9. a5 {[%clk 0:02:48.3]} 9... Nf8 {[%clk 0:02:50]}
10. h3 {[%clk 0:02:30.8]} 10... g5 {[%clk 0:02:40.5]} 11. Nd2 {[%clk 0:02:26]}
11... Ng6 {[%clk 0:02:39]} 12. g3 {[%clk 0:02:24.9]} 12... Be6 {[%clk
0:02:17.3]} 13. Bxe6 {[%clk 0:02:24.5]} 13... fxe6 {[%clk 0:02:18.2]} 14. Qc4
{[%clk 0:02:18.4]} 14... d5 {[%clk 0:02:15.9]} 15. Qa4 {[%clk 0:02:09.9]} 15...
exd4 {[%clk 0:02:13]} 16. Bxd4 {[%clk 0:01:47.8]} 16... e5 {[%clk 0:02:12.8]}
17. Bxa7 {[%clk 0:01:24.6]} 17... Rxa7 {[%clk 0:02:11.4]} 18. exd5 {[%clk
0:01:24.8]} 18... O-O {[%clk 0:02:08.6]} 19. dxc6 {[%clk 0:01:24.3]} 19... Qxc6
{[%clk 0:02:04.3]} 20. Qxc6 {[%clk 0:01:22.7]} 20... bxc6 {[%clk 0:02:04.9]} 21.
Nc4 {[%clk 0:01:22.7]} 21... Bb4 {[%clk 0:02:01.1]} 22. Ke2 {[%clk 0:01:20.9]}
22... Bxc3 {[%clk 0:01:51.2]} 23. bxc3 {[%clk 0:01:21]} 23... Nd5 {[%clk
0:01:51.2]} 24. Ra3 {[%clk 0:01:19.8]} 24... e4 {[%clk 0:01:51]} 25. Rb1 {[%clk
0:01:17.9]} 25... Raf7 {[%clk 0:01:50.1]} 26. Kd2 {[%clk 0:01:10]} 26... Rxf2+
{[%clk 0:01:48.7]} 27. Kc1 {[%clk 0:01:10.2]} 27... Rf1+ {[%clk 0:01:43.2]} 28.
Kb2 {[%clk 0:01:11.1]} 28... Rxb1+ {[%clk 0:01:42.6]} 29. Kxb1 {[%clk
0:01:11.1]} 29... e3 {[%clk 0:01:43]} 30. Kb2 {[%clk 0:01:09.8]} 30... e2 {[%clk
0:01:43]} 31. Ra1 {[%clk 0:01:09.7]} 31... Rf1 {[%clk 0:01:41.8]} 0-1

[Event "*** SCC Grand Prix: Titled Tuesday Blitz"]
[Site "Chess.com"]
[Date "2020.07.21"]
[Round "4"]
[White "124chess"]
[Black "Iskusnyh"]
[Result "1-0"]
[WhiteElo "2685"]
[BlackElo "2483"]
[TimeControl "180+1"]
[EndTime "10:36:06 PDT"]
[Termination "124chess won by resignation"]

1. b3 {[%clk 0:03:00.9]} 1... e5 {[%clk 0:02:58.6]} 2. Bb2 {[%clk 0:03:01.8]}
2... Nc6 {[%clk 0:02:58.1]} 3. e3 {[%clk 0:03:02.5]} 3... d6 {[%clk 0:02:57.6]}
4. c4 {[%clk 0:03:01.6]} 4... g6 {[%clk 0:02:57]} 5. Nc3 {[%clk 0:03:01.3]} 5...
Bg7 {[%clk 0:02:56.9]} 6. g3 {[%clk 0:03:01.9]} 6... h5 {[%clk 0:02:48]} 7. h3
{[%clk 0:03:00.7]} 7... h4 {[%clk 0:02:43.3]} 8. g4 {[%clk 0:03:00.4]} 8... f5
{[%clk 0:02:42.5]} 9. Bg2 {[%clk 0:02:57.6]} 9... Nf6 {[%clk 0:02:35]} 10. Qc2
{[%clk 0:02:53.2]} 10... e4 {[%clk 0:02:31.2]} 11. a3 {[%clk 0:02:42.4]} 11...
Ne5 {[%clk 0:02:29.6]} 12. Bf1 {[%clk 0:02:42.8]} 12... fxg4 {[%clk 0:02:16]}
13. O-O-O {[%clk 0:02:42.9]} 13... Bf5 {[%clk 0:02:12.4]} 14. Kb1 {[%clk
0:02:39.4]} 14... Nd3 {[%clk 0:01:52.6]} 15. Bxd3 {[%clk 0:02:30.4]} 15... exd3
{[%clk 0:01:50.2]} 16. Qc1 {[%clk 0:02:30.9]} 16... Qd7 {[%clk 0:01:46.6]} 17.
hxg4 {[%clk 0:02:26.9]} 17... Nxg4 {[%clk 0:01:43.4]} 18. Nh3 {[%clk 0:02:21.6]}
18... Nxe3 {[%clk 0:01:33.6]} 19. Rde1 {[%clk 0:02:21.6]} 19... Bxh3 {[%clk
0:00:59.9]} 20. Rxe3+ {[%clk 0:02:10.5]} 20... Be6 {[%clk 0:00:57.2]} 21. Rhe1
{[%clk 0:02:08.1]} 21... Be5 {[%clk 0:00:56.3]} 22. f4 {[%clk 0:02:05.1]} 22...
O-O-O {[%clk 0:00:51.2]} 23. fxe5 {[%clk 0:02:05.3]} 23... d5 {[%clk 0:00:51.5]}
24. cxd5 {[%clk 0:02:03.1]} 24... Bxd5 {[%clk 0:00:51.5]} 25. e6 {[%clk
0:02:02.2]} 1-0

[Event "*** SCC Grand Prix: Titled Tuesday Blitz"]
[Site "Chess.com"]
[Date "2020.07.21"]
[Round "4"]
[White "m_ezat"]
[Black "BJthechessgod"]
[Result "1-0"]
[WhiteElo "2567"]
[BlackElo "2323"]
[TimeControl "180+1"]
[EndTime "10:36:11 PDT"]
[Termination "m_ezat won by checkmate"]

1. d4 {[%clk 0:03:00.9]} 1... Nf6 {[%clk 0:02:57.8]} 2. c4 {[%clk 0:03:01.5]}
2... e6 {[%clk 0:02:57.7]} 3. Nc3 {[%clk 0:03:01.9]} 3... Bb4 {[%clk 0:02:57.8]}
4. e3 {[%clk 0:03:02.1]} 4... O-O {[%clk 0:02:57.8]} 5. a3 {[%clk 0:03:02.7]}
5... Bxc3+ {[%clk 0:02:58.2]} 6. bxc3 {[%clk 0:03:03.4]} 6... d5 {[%clk
0:02:58.4]} 7. cxd5 {[%clk 0:03:02.9]} 7... exd5 {[%clk 0:02:59.3]} 8. Bd3
{[%clk 0:03:03.4]} 8... c6 {[%clk 0:02:59.8]} 9. f3 {[%clk 0:03:03.8]} 9... Re8
{[%clk 0:02:57.4]} 10. Ne2 {[%clk 0:03:04.1]} 10... Nbd7 {[%clk 0:02:58]} 11.
O-O {[%clk 0:03:04.3]} 11... Nf8 {[%clk 0:02:58.6]} 12. Ng3 {[%clk 0:03:04.3]}
12... Be6 {[%clk 0:02:54.8]} 13. e4 {[%clk 0:03:04.1]} 13... Rc8 {[%clk
0:02:51.2]} 14. e5 {[%clk 0:03:04.1]} 14... N6d7 {[%clk 0:02:50.5]} 15. f4
{[%clk 0:03:04.7]} 15... Nb6 {[%clk 0:02:41.2]} 16. f5 {[%clk 0:03:04.5]} 16...
Bd7 {[%clk 0:02:41.8]} 17. e6 {[%clk 0:01:28.2]} 17... fxe6 {[%clk 0:02:39.4]}
18. f6 {[%clk 0:01:28.5]} 18... gxf6 {[%clk 0:02:27.9]} 19. Qg4+ {[%clk
0:01:25.8]} 19... Kf7 {[%clk 0:01:38.4]} 20. Nh5 {[%clk 0:01:15.6]} 20... Ng6
{[%clk 0:01:35.6]} 21. Nxf6 {[%clk 0:01:03.9]} 21... Qxf6 {[%clk 0:01:30.1]} 22.
Bg5 {[%clk 0:00:59.5]} 22... Qxf1+ {[%clk 0:01:29.6]} 23. Rxf1+ {[%clk 0:00:58]}
23... Kg8 {[%clk 0:01:24.2]} 24. Bxg6 {[%clk 0:00:53.5]} 24... hxg6 {[%clk
0:01:23.8]} 25. Bh6 {[%clk 0:00:53.4]} 25... Kh7 {[%clk 0:01:22.7]} 26. Rf7+
{[%clk 0:00:52.1]} 26... Kxh6 {[%clk 0:01:22.8]} 27. Qh4# {[%clk 0:00:51.8]} 1-0

[Event "*** SCC Grand Prix: Titled Tuesday Blitz"]
[Site "Chess.com"]
[Date "2020.07.21"]
[Round "4"]
[White "blitzking1729"]
[Black "qingaunlee"]
[Result "1-0"]
[WhiteElo "2582"]
[BlackElo "2340"]
[TimeControl "180+1"]
[EndTime "10:36:12 PDT"]
[Termination "blitzking1729 won by resignation"]

1. c4 {[%clk 0:03:00.9]} 1... e6 {[%clk 0:02:59.7]} 2. Nc3 {[%clk 0:02:59.4]}
2... d5 {[%clk 0:02:59.1]} 3. cxd5 {[%clk 0:02:59.3]} 3... exd5 {[%clk
0:02:58.5]} 4. d4 {[%clk 0:03:00.2]} 4... c6 {[%clk 0:02:57.1]} 5. Nf3 {[%clk
0:02:57.8]} 5... Bd6 {[%clk 0:02:56.6]} 6. e3 {[%clk 0:02:50.8]} 6... Bf5 {[%clk
0:02:53.1]} 7. Bd3 {[%clk 0:02:50.1]} 7... Bg6 {[%clk 0:02:28.2]} 8. O-O {[%clk
0:02:47.4]} 8... Nf6 {[%clk 0:02:26.9]} 9. Ne5 {[%clk 0:02:46.5]} 9... Nbd7
{[%clk 0:02:20.1]} 10. f4 {[%clk 0:02:42.9]} 10... Bxd3 {[%clk 0:02:07.5]} 11.
Qxd3 {[%clk 0:02:41.8]} 11... Qe7 {[%clk 0:02:05.2]} 12. Bd2 {[%clk 0:02:40]}
12... Ne4 {[%clk 0:01:50.5]} 13. Nxe4 {[%clk 0:02:33.3]} 13... dxe4 {[%clk
0:01:49.5]} 14. Qb3 {[%clk 0:02:24.5]} 14... Nf6 {[%clk 0:01:47.3]} 15. Be1
{[%clk 0:02:17]} 15... Nd5 {[%clk 0:01:43.9]} 16. Bf2 {[%clk 0:02:05.2]} 16...
O-O {[%clk 0:01:42.3]} 17. Qc2 {[%clk 0:01:59.2]} 17... f5 {[%clk 0:01:35.3]}
18. a3 {[%clk 0:01:56.4]} 18... a5 {[%clk 0:01:33.9]} 19. Nc4 {[%clk 0:01:52.4]}
19... Bc7 {[%clk 0:01:32.6]} 20. b3 {[%clk 0:01:46.9]} 20... Rf6 {[%clk
0:01:30.5]} 21. Bh4 {[%clk 0:01:44.8]} 21... b5 {[%clk 0:01:29]} 22. Bxf6 {[%clk
0:01:41.6]} 22... Qxf6 {[%clk 0:01:19.8]} 23. Ne5 {[%clk 0:01:16.7]} 23... Nxe3
{[%clk 0:01:17.9]} 24. Qxc6 {[%clk 0:01:16.3]} 24... Qxc6 {[%clk 0:01:17.1]} 25.
Nxc6 {[%clk 0:01:16.1]} 25... Nxf1 {[%clk 0:01:17.4]} 26. Rxf1 {[%clk
0:01:16.4]} 26... Bb6 {[%clk 0:01:15.5]} 27. Kf2 {[%clk 0:01:07.7]} 27... Rc8
{[%clk 0:01:13.8]} 28. Ne7+ {[%clk 0:01:07]} 1-0

[Event "*** SCC Grand Prix: Titled Tuesday Blitz"]
[Site "Chess.com"]
[Date "2020.07.21"]
[Round "4"]
[White "GM_dmitrij"]
[Black "bugsbunny444"]
[Result "1-0"]
[WhiteElo "2930"]
[BlackElo "2566"]
[TimeControl "180+1"]
[EndTime "10:36:14 PDT"]
[Termination "GM_dmitrij won by resignation"]

1. Nf3 {[%clk 0:03:00.9]} 1... d5 {[%clk 0:02:57.2]} 2. e3 {[%clk 0:03:00.7]}
2... Nf6 {[%clk 0:02:56.5]} 3. c4 {[%clk 0:03:00.7]} 3... e6 {[%clk 0:02:56.5]}
4. b3 {[%clk 0:03:00.4]} 4... Be7 {[%clk 0:02:53.1]} 5. Bb2 {[%clk 0:03:00.6]}
5... O-O {[%clk 0:02:53]} 6. Be2 {[%clk 0:03:00.7]} 6... c5 {[%clk 0:02:50.2]}
7. cxd5 {[%clk 0:02:59.3]} 7... Nxd5 {[%clk 0:02:49.3]} 8. O-O {[%clk
0:02:59.2]} 8... Nc6 {[%clk 0:02:46.4]} 9. Nc3 {[%clk 0:02:40.1]} 9... Nxc3
{[%clk 0:02:35.2]} 10. Bxc3 {[%clk 0:02:40.2]} 10... b6 {[%clk 0:02:35.6]} 11.
Rc1 {[%clk 0:02:37]} 11... Bb7 {[%clk 0:02:35.2]} 12. a3 {[%clk 0:02:36.8]}
12... Rc8 {[%clk 0:02:19.1]} 13. Qc2 {[%clk 0:02:36.8]} 13... Nd4 {[%clk
0:01:38.8]} 14. exd4 {[%clk 0:02:15.9]} 14... Bxf3 {[%clk 0:01:09.3]} 15. Ba6
{[%clk 0:02:15.5]} 15... cxd4 {[%clk 0:00:07]} 16. Bxc8 {[%clk 0:02:13.8]} 16...
dxc3 {[%clk 0:00:05.3]} 17. Qxc3 {[%clk 0:02:14.4]} 17... Be2 {[%clk 0:00:05.2]}
18. Rfe1 {[%clk 0:02:14.2]} 18... Bxa3 {[%clk 0:00:05.2]} 19. Ra1 {[%clk
0:02:05.7]} 19... Qxc8 {[%clk 0:00:03.3]} 20. Rxa3 {[%clk 0:01:56.9]} 20... Qxc3
{[%clk 0:00:01.5]} 21. dxc3 {[%clk 0:01:57.8]} 1-0

[Event "*** SCC Grand Prix: Titled Tuesday Blitz"]
[Site "Chess.com"]
[Date "2020.07.21"]
[Round "4"]
[White "harkerchess"]
[Black "margarita_2703"]
[Result "0-1"]
[WhiteElo "2113"]
[BlackElo "2387"]
[TimeControl "180+1"]
[EndTime "10:36:20 PDT"]
[Termination "margarita_2703 won by resignation"]

1. d4 {[%clk 0:03:00.9]} 1... Nf6 {[%clk 0:02:55.3]} 2. Bg5 {[%clk 0:03:00]}
2... Ne4 {[%clk 0:02:54.2]} 3. Bf4 {[%clk 0:02:59.4]} 3... d5 {[%clk 0:02:53.5]}
4. Nd2 {[%clk 0:02:59.5]} 4... c5 {[%clk 0:02:45.1]} 5. Nxe4 {[%clk 0:02:56.2]}
5... dxe4 {[%clk 0:02:44.6]} 6. e3 {[%clk 0:02:57.1]} 6... Nc6 {[%clk
0:02:41.4]} 7. dxc5 {[%clk 0:02:54.1]} 7... Qa5+ {[%clk 0:02:36]} 8. c3 {[%clk
0:02:52.3]} 8... Qxc5 {[%clk 0:02:36]} 9. Bg3 {[%clk 0:02:44.3]} 9... g6 {[%clk
0:02:25.9]} 10. Qa4 {[%clk 0:02:37.4]} 10... Bg7 {[%clk 0:02:20.3]} 11. Qc2
{[%clk 0:02:30.4]} 11... Bf5 {[%clk 0:02:17.3]} 12. Ne2 {[%clk 0:02:28.1]} 12...
O-O {[%clk 0:02:11.7]} 13. Nc1 {[%clk 0:02:20.6]} 13... Nb4 {[%clk 0:01:55.9]}
14. Qb3 {[%clk 0:02:16.9]} 14... Nd3+ {[%clk 0:01:43.5]} 15. Bxd3 {[%clk
0:01:59.6]} 15... exd3 {[%clk 0:01:43]} 16. O-O {[%clk 0:02:00.5]} 16... d2
{[%clk 0:01:39.2]} 17. Ne2 {[%clk 0:01:59.9]} 17... Bd3 {[%clk 0:01:37.6]} 18.
Qd1 {[%clk 0:01:59.3]} 18... Qb5 {[%clk 0:01:30.1]} 19. a4 {[%clk 0:01:50.2]}
19... Qa6 {[%clk 0:01:23.8]} 20. Qxd2 {[%clk 0:01:41]} 20... Bxe2 {[%clk
0:01:22.7]} 21. Rfe1 {[%clk 0:01:41.9]} 21... Bc4 {[%clk 0:01:18.9]} 22. Qc2
{[%clk 0:01:39.9]} 22... Rac8 {[%clk 0:01:14.7]} 23. Rad1 {[%clk 0:01:28.7]}
23... Qb6 {[%clk 0:01:08.2]} 24. Rd7 {[%clk 0:01:25.3]} 24... Bf6 {[%clk
0:01:04.5]} 25. Red1 {[%clk 0:01:23.7]} 25... Bb3 {[%clk 0:01:00.8]} 26. Qc1
{[%clk 0:01:20.2]} 26... Bxd1 {[%clk 0:01:00.4]} 27. Qxd1 {[%clk 0:01:21.1]}
27... Qxb2 {[%clk 0:00:58.3]} 28. Qd5 {[%clk 0:01:18.1]} 28... Qc1+ {[%clk
0:00:53.7]} 0-1

[Event "*** SCC Grand Prix: Titled Tuesday Blitz"]
[Site "Chess.com"]
[Date "2020.07.21"]
[Round "4"]
[White "anon569"]
[Black "PrinceMurad09"]
[Result "1-0"]
[WhiteElo "2315"]
[BlackElo "2558"]
[TimeControl "180+1"]
[EndTime "10:36:21 PDT"]
[Termination "anon569 won by resignation"]

1. e4 {[%clk 0:03:00.9]} 1... c5 {[%clk 0:03:00.3]} 2. Nf3 {[%clk 0:02:58.8]}
2... d6 {[%clk 0:03:00.7]} 3. d4 {[%clk 0:02:58.4]} 3... cxd4 {[%clk 0:03:01.2]}
4. Nxd4 {[%clk 0:02:58.7]} 4... Nf6 {[%clk 0:03:01.8]} 5. Nc3 {[%clk 0:02:58.1]}
5... g6 {[%clk 0:03:02.5]} 6. Be3 {[%clk 0:02:57.2]} 6... Bg7 {[%clk 0:03:03.1]}
7. f3 {[%clk 0:02:56.3]} 7... Nc6 {[%clk 0:03:03.8]} 8. Bc4 {[%clk 0:02:54.7]}
8... O-O {[%clk 0:03:04.2]} 9. Qd2 {[%clk 0:02:54.9]} 9... Bd7 {[%clk
0:03:04.6]} 10. h4 {[%clk 0:02:54.4]} 10... Rc8 {[%clk 0:03:03.7]} 11. Bb3
{[%clk 0:02:54.4]} 11... h5 {[%clk 0:03:04.1]} 12. O-O-O {[%clk 0:02:53.6]}
12... Ne5 {[%clk 0:03:04.5]} 13. Bh6 {[%clk 0:02:53.1]} 13... Nc4 {[%clk
0:02:57.5]} 14. Bxc4 {[%clk 0:02:52.6]} 14... Rxc4 {[%clk 0:02:58.4]} 15. Bxg7
{[%clk 0:02:53]} 15... Kxg7 {[%clk 0:02:58.6]} 16. g4 {[%clk 0:02:53.6]} 16...
hxg4 {[%clk 0:02:37.2]} 17. h5 {[%clk 0:02:53.8]} 17... Rh8 {[%clk 0:02:37.5]}
18. hxg6 {[%clk 0:02:53.4]} 18... fxg6 {[%clk 0:02:38]} 19. f4 {[%clk
0:02:53.7]} 19... Bc6 {[%clk 0:02:26]} 20. Ne6+ {[%clk 0:02:47.2]} 20... Kf7
{[%clk 0:02:23.2]} 21. Nxd8+ {[%clk 0:02:46.6]} 21... Rxd8 {[%clk 0:02:24.1]}
22. e5 {[%clk 0:02:42.4]} 22... Nh5 {[%clk 0:01:01.4]} 23. e6+ {[%clk 0:02:01]}
23... Kf6 {[%clk 0:00:56.8]} 24. Nd5+ {[%clk 0:01:56.7]} 24... Kg7 {[%clk
0:00:53.4]} 25. f5 {[%clk 0:01:51.7]} 25... Nf4 {[%clk 0:00:42.9]} 26. Nxf4
{[%clk 0:01:48.2]} 26... Bxh1 {[%clk 0:00:43]} 27. Rxh1 {[%clk 0:01:48.8]} 27...
gxf5 {[%clk 0:00:36.6]} 28. Nd5 {[%clk 0:01:46.9]} 1-0

[Event "*** SCC Grand Prix: Titled Tuesday Blitz"]
[Site "Chess.com"]
[Date "2020.07.21"]
[Round "4"]
[White "Oleksandr_Bortnyk"]
[Black "Shubinkirill2003"]
[Result "1-0"]
[WhiteElo "2943"]
[BlackElo "2656"]
[TimeControl "180+1"]
[EndTime "10:36:30 PDT"]
[Termination "Oleksandr_Bortnyk won by resignation"]

1. d4 {[%clk 0:03:00.9]} 1... e6 {[%clk 0:02:59.8]} 2. Bf4 {[%clk 0:02:59.2]}
2... Nf6 {[%clk 0:02:59.8]} 3. e3 {[%clk 0:02:58.9]} 3... b6 {[%clk 0:02:59.9]}
4. Nf3 {[%clk 0:02:55.8]} 4... Bb7 {[%clk 0:02:59.8]} 5. h3 {[%clk 0:02:56.3]}
5... d6 {[%clk 0:02:59.8]} 6. c3 {[%clk 0:02:56.9]} 6... Nbd7 {[%clk 0:02:59.8]}
7. Be2 {[%clk 0:02:56.9]} 7... h6 {[%clk 0:03:00]} 8. Nbd2 {[%clk 0:02:55.7]}
8... g5 {[%clk 0:02:59.8]} 9. Bg3 {[%clk 0:02:54.8]} 9... Rg8 {[%clk 0:02:59.9]}
10. Qc2 {[%clk 0:02:53.5]} 10... h5 {[%clk 0:02:54]} 11. e4 {[%clk 0:02:43.9]}
11... g4 {[%clk 0:02:46.6]} 12. hxg4 {[%clk 0:02:42.7]} 12... hxg4 {[%clk
0:02:47.5]} 13. Ng1 {[%clk 0:02:33]} 13... c5 {[%clk 0:02:37.1]} 14. Bd3 {[%clk
0:02:12.2]} 14... cxd4 {[%clk 0:02:28.7]} 15. cxd4 {[%clk 0:02:11.5]} 15... Rc8
{[%clk 0:02:22.6]} 16. Qb3 {[%clk 0:02:06.9]} 16... a6 {[%clk 0:02:02.7]} 17.
Ne2 {[%clk 0:02:04.3]} 17... e5 {[%clk 0:01:39.8]} 18. Kf1 {[%clk 0:01:51.2]}
18... exd4 {[%clk 0:01:34.2]} 19. Bc4 {[%clk 0:01:49.8]} 19... Nc5 {[%clk
0:01:15.2]} 20. Bxf7+ {[%clk 0:01:26.2]} 20... Ke7 {[%clk 0:01:14.1]} 21. Bxg8
{[%clk 0:01:26.1]} 21... Nxb3 {[%clk 0:01:09.8]} 22. Bxb3 {[%clk 0:01:27]} 22...
d5 {[%clk 0:00:58.2]} 23. e5 {[%clk 0:01:23.3]} 23... Bg7 {[%clk 0:00:45.1]} 24.
exf6+ {[%clk 0:01:21.5]} 24... Bxf6 {[%clk 0:00:46]} 25. Rh7+ {[%clk 0:01:21.4]}
25... Ke6 {[%clk 0:00:44.7]} 26. Nf4+ {[%clk 0:01:15.6]} 26... Kf5 {[%clk
0:00:45]} 27. Rxb7 {[%clk 0:01:08.6]} 1-0

[Event "*** SCC Grand Prix: Titled Tuesday Blitz"]
[Site "Chess.com"]
[Date "2020.07.21"]
[Round "4"]
[White "Ermito2020"]
[Black "warmoatmeal"]
[Result "1-0"]
[WhiteElo "2580"]
[BlackElo "2356"]
[TimeControl "180+1"]
[EndTime "10:36:30 PDT"]
[Termination "Ermito2020 won by resignation"]

1. e4 {[%clk 0:03:00.9]} 1... c6 {[%clk 0:02:59.4]} 2. d4 {[%clk 0:03:00.4]}
2... d5 {[%clk 0:02:59.4]} 3. e5 {[%clk 0:03:01]} 3... c5 {[%clk 0:02:59.4]} 4.
Nf3 {[%clk 0:03:01.9]} 4... cxd4 {[%clk 0:02:57.8]} 5. Nxd4 {[%clk 0:03:01.5]}
5... Nc6 {[%clk 0:02:58.1]} 6. c4 {[%clk 0:03:02]} 6... Nxe5 {[%clk 0:02:56]} 7.
cxd5 {[%clk 0:02:57.1]} 7... Qxd5 {[%clk 0:02:55.5]} 8. Nc3 {[%clk 0:02:53.2]}
8... Qd8 {[%clk 0:02:51.7]} 9. Bb5+ {[%clk 0:02:51.3]} 9... Bd7 {[%clk
0:02:50.8]} 10. O-O {[%clk 0:02:48.1]} 10... Nf6 {[%clk 0:02:43.6]} 11. Re1
{[%clk 0:02:46.1]} 11... Nc6 {[%clk 0:02:27.1]} 12. Bg5 {[%clk 0:02:20]} 12...
e6 {[%clk 0:02:22.8]} 13. Nf5 {[%clk 0:01:50.5]} 13... Be7 {[%clk 0:01:57.1]}
14. Nxg7+ {[%clk 0:01:34.8]} 14... Kf8 {[%clk 0:01:55.4]} 15. Bh6 {[%clk
0:01:34.8]} 15... Kg8 {[%clk 0:01:55.3]} 16. Qf3 {[%clk 0:01:28.5]} 16... Qc7
{[%clk 0:01:34.4]} 17. Rad1 {[%clk 0:01:15]} 17... Rd8 {[%clk 0:01:02.8]} 18.
Nh5 {[%clk 0:01:14.5]} 1-0

[Event "*** SCC Grand Prix: Titled Tuesday Blitz"]
[Site "Chess.com"]
[Date "2020.07.21"]
[Round "4"]
[White "ApacheSVD"]
[Black "nrvignesh"]
[Result "0-1"]
[WhiteElo "2361"]
[BlackElo "2766"]
[TimeControl "180+1"]
[EndTime "10:36:30 PDT"]
[Termination "nrvignesh won by checkmate"]

1. e4 {[%clk 0:03:00.9]} 1... c5 {[%clk 0:02:59.5]} 2. Nf3 {[%clk 0:03:00.6]}
2... d6 {[%clk 0:02:59.5]} 3. d4 {[%clk 0:02:58.5]} 3... cxd4 {[%clk 0:03:00.4]}
4. Nxd4 {[%clk 0:02:58.4]} 4... Nf6 {[%clk 0:03:00.5]} 5. Nc3 {[%clk 0:02:58.7]}
5... a6 {[%clk 0:03:01.4]} 6. Qf3 {[%clk 0:02:58.4]} 6... g6 {[%clk 0:02:59.7]}
7. h3 {[%clk 0:02:49.4]} 7... Bg7 {[%clk 0:02:59.1]} 8. g4 {[%clk 0:02:47.8]}
8... O-O {[%clk 0:02:57.6]} 9. Be3 {[%clk 0:02:47.2]} 9... Nc6 {[%clk
0:02:54.4]} 10. O-O-O {[%clk 0:02:43.1]} 10... Bd7 {[%clk 0:02:44.9]} 11. Be2
{[%clk 0:02:37.6]} 11... Rc8 {[%clk 0:02:43.1]} 12. Qg2 {[%clk 0:02:33.5]} 12...
Ne5 {[%clk 0:02:33.8]} 13. g5 {[%clk 0:02:31.9]} 13... Nh5 {[%clk 0:02:32.5]}
14. Bxh5 {[%clk 0:02:31.5]} 14... gxh5 {[%clk 0:02:32.3]} 15. Nf5 {[%clk
0:01:47.5]} 15... Nc4 {[%clk 0:02:23]} 16. Nxg7 {[%clk 0:01:36.7]} 16... Kxg7
{[%clk 0:02:19.7]} 17. Qf3 {[%clk 0:00:33.5]} 17... Qa5 {[%clk 0:02:12.1]} 18.
Rd5 {[%clk 0:00:27]} 18... Qb4 {[%clk 0:02:07.1]} 19. Bd4+ {[%clk 0:00:21.9]}
19... e5 {[%clk 0:01:56.4]} 20. Qf6+ {[%clk 0:00:15.7]} 20... Kg8 {[%clk
0:01:54.2]} 21. Nd1 {[%clk 0:00:10.2]} 21... Qd2+ {[%clk 0:01:41.2]} 22. Kb1
{[%clk 0:00:10.6]} 22... Na3+ {[%clk 0:01:40.9]} 23. Ka1 {[%clk 0:00:11.2]}
23... Qc1# {[%clk 0:01:40]} 0-1

[Event "*** SCC Grand Prix: Titled Tuesday Blitz"]
[Site "Chess.com"]
[Date "2020.07.21"]
[Round "4"]
[White "BillieKimbah"]
[Black "NikolaGry"]
[Result "1-0"]
[WhiteElo "2894"]
[BlackElo "2634"]
[TimeControl "180+1"]
[EndTime "10:36:32 PDT"]
[Termination "BillieKimbah won by resignation"]

1. d4 {[%clk 0:02:59.4]} 1... d5 {[%clk 0:02:59.2]} 2. Nf3 {[%clk 0:02:58.8]}
2... Nc6 {[%clk 0:02:58.7]} 3. c4 {[%clk 0:02:56]} 3... Bg4 {[%clk 0:02:58.6]}
4. Nc3 {[%clk 0:02:55.9]} 4... e6 {[%clk 0:02:58.1]} 5. e3 {[%clk 0:02:51.8]}
5... Nf6 {[%clk 0:02:53.6]} 6. h3 {[%clk 0:02:48.1]} 6... Bxf3 {[%clk
0:02:47.8]} 7. Qxf3 {[%clk 0:02:47.8]} 7... a6 {[%clk 0:02:47.7]} 8. Bd2 {[%clk
0:02:44.1]} 8... dxc4 {[%clk 0:02:35]} 9. Bxc4 {[%clk 0:02:42.3]} 9... Bd6
{[%clk 0:02:34.9]} 10. O-O-O {[%clk 0:02:26.1]} 10... O-O {[%clk 0:02:29.3]} 11.
g4 {[%clk 0:02:26.2]} 11... e5 {[%clk 0:02:16.8]} 12. g5 {[%clk 0:02:24.5]}
12... Nd7 {[%clk 0:02:13.6]} 13. Qg4 {[%clk 0:01:57]} 13... Nb6 {[%clk
0:01:52.5]} 14. Bb3 {[%clk 0:01:53.3]} 14... a5 {[%clk 0:01:39.2]} 15. Ne4
{[%clk 0:01:46.8]} 15... Kh8 {[%clk 0:01:17.1]} 16. Bc3 {[%clk 0:01:29.2]} 16...
exd4 {[%clk 0:01:09.9]} 17. exd4 {[%clk 0:01:25.2]} 17... a4 {[%clk 0:00:57.8]}
18. Bc2 {[%clk 0:01:25.2]} 18... Nb4 {[%clk 0:00:54.5]} 19. Bxb4 {[%clk
0:01:22.8]} 19... Bxb4 {[%clk 0:00:53.5]} 20. Nf6 {[%clk 0:01:22.3]} 20... g6
{[%clk 0:00:48.1]} 21. Qh4 {[%clk 0:01:13.4]} 21... h5 {[%clk 0:00:41.2]} 22.
Nxh5 {[%clk 0:01:11.8]} 1-0